Cogmind - Beta 17.1 @@@ ROGUE MODE // 2026.08.27 @ 15:30:37 Player: Caluan Result: Destroyed by Executioner with Helical Railgun Performance ------------- Evolutions (5) 2500 Regions Visited (17) 3400 Robots Destroyed (190) 950 Value Destroyed (7278) 7278 Prototype IDs (28) 560 Alien Tech Used (1) 200 Bonus (3167) 3167 TOTAL SCORE: 18055 Bonus ------- High Alert Combat Kills 585 Follower Combat Kills 1110 Met Warlord at Base 500 MAIN.C Attacked Warlord 500 Warlord Defense Kills 492 Friendly Fire -20 Cogmind --------- Core Integrity 0/1000 Matter 291/300 Energy 325/325 System Corruption 10% Temperature Cool (9) Movement Treading (160) Location -5/Warlord Parts ------- > --- POWER (2) -------- Antimatter Reactor > --- PROPULSION (4) --- Heavy Treads Heavy Treads > --- UTILITY (7) ------ Advanced Heat Sink Large Storage Unit Makeshift Salvage Targeting Computer Improved System Shield > --- WEAPON (4) ------- Heavy Battle Rifle Helical Railgun > --- INVENTORY (15) --- Armored Medium Treads Heavy Treads Helical Railgun Helical Railgun Helical Railgun Bore Cannon Mass Driver Heavy Mass Driver Enhanced Gauss Cannon Hardcell Cannon Thermoblaster RU-N14's Throwing Claymores v3 (3) RU-N14's Throwing Claymores v3 (4) Peak State ------------ > --- POWER ------------ Antimatter Reactor Antimatter Reactor > --- PROPULSION ------- Heavy Treads Heavy Treads > --- UTILITY ---------- Advanced Heat Sink Advanced Heat Sink Large Storage Unit Damper Plating > --- WEAPON ----------- Heavy Battle Rifle Heavy Battle Rifle Helical Railgun Helical Railgun > --- INVENTORY -------- Heavy Treads Heavy Treads Heavy Battle Rifle Helical Railgun Helical Railgun Gauss Cannon Bore Cannon Mass Driver [Rating: 105] Favorites ----------- Power Fission Core Engine Ion Engine Power Core Fission Core Reactor Antimatter Reactor Propulsion Light Treads Treads Light Treads Hover Unit Backup Propulsion III Utility Huge Storage Unit Device Transmission Jammer Storage Huge Storage Unit Processor Advanced Targeting Computer Hackware System Shield Protection Improved Light Armor Plating Weapon Gauss Rifle Energy Gun EM Shotgun Energy Cannon Ion Cannon Ballistic Gun Gauss Rifle Ballistic Cannon Advanced Assault Cannon Launcher Rocket Launcher Special Weapon RU-N14's Throwing Claymores v3 Impact Weapon Makeshift Hammer Build | -11 -10 -10 -10 -9 -8 -7 -6 -6 -6 -6 -5 -5 -5 -5 -5 -5 -5 ------- Run | Yrd Mat Min Exi Min Mat Fac Fac Low Low Zio Pro Fac Was Fac Upp Upp War Slots Evolved 10 | . . . . . 4 2 2 . . . . 2 . . . . . Power 1 | . . . . . . . . . . . . 1 . . . . . Propulsion 2 | . . . . . 1 1 . . . . . . . . . . . Utility 5 | . . . . . 2 . 2 . . . . 1 . . . . . Weapon 2 | . . . . . 1 1 . . . . . . . . . . . Parts Attached 143 | 6 7 . . 5 31 14 11 7 7 . 3 24 13 6 3 4 2 Power 19 | 1 . . . . 5 1 . 3 . . . 4 4 . . 1 . Engine 6 | 1 . . . . 3 . . . . . . 1 . . . 1 . Core 10 | . . . . . 2 1 . 3 . . . 3 1 . . . . Reactor 3 | . . . . . . . . . . . . . 3 . . . . Propulsion 34 | 2 1 . . 2 8 5 5 3 . . 1 3 3 . . . 1 Treads 34 | 2 1 . . 2 8 5 5 3 . . 1 3 3 . . . 1 Leg . | . . . . . . . . . . . . . . . . . . Wheel . | . . . . . . . . . . . . . . . . . . Hover . | . . . . . . . . . . . . . . . . . . Flight . | . . . . . . . . . . . . . . . . . . Utility 40 | 1 1 . . 1 7 4 4 . 3 . 1 7 2 4 2 3 . Device 16 | . . . . . 3 2 1 . 2 . . 4 . 2 1 1 . Storage 5 | 1 1 . . . 1 1 . . . . . . . 1 . . . Processor 5 | . . . . . . . 1 . 1 . . 1 . 1 . 1 . Hackware 2 | . . . . . . . . . . . . . . . 1 1 . Protection 12 | . . . . 1 3 1 2 . . . 1 2 2 . . . . Artifact . | . . . . . . . . . . . . . . . . . . Weapon 50 | 2 5 . . 2 11 4 2 1 4 . 1 10 4 2 1 . 1 Energy Gun 8 | 2 5 . . 1 . . . . . . . . . . . . . Energy Cannon 1 | . . . . . 1 . . . . . . . . . . . . Ballistic Gun 35 | . . . . . 10 4 2 1 2 . . 9 4 2 1 . . Ballistic Cannon 3 | . . . . . . . . . 1 . 1 1 . . . . . Launcher 1 | . . . . . . . . . 1 . . . . . . . . Special Weapon 1 | . . . . . . . . . . . . . . . . . 1 Impact Weapon 1 | . . . . 1 . . . . . . . . . . . . . Slashing Weapon . | . . . . . . . . . . . . . . . . . . Piercing Weapon . | . . . . . . . . . . . . . . . . . . Special Melee Weapon . | . . . . . . . . . . . . . . . . . . Unidentified Prototypes 8 | . . . . . 2 2 . . . . . 1 . 1 1 . 1 Corrupted Parts 2 | . . . . 1 . . . . . . . . . 1 . . . System Corruption 4 | . . . . 1 . . . . . . . . . 3 . . . Parts Lost 95 | . 1 . . 5 16 7 7 9 2 . 2 33 . 5 1 2 5 Power 11 | . . . . . 4 . . 1 . . . 4 . 1 . . 1 Propulsion 26 | . . . . 2 6 1 4 3 . . . 9 . . . 1 . Utility 27 | . . . . . 3 3 1 2 1 . 1 10 . 3 . . 3 Weapon 31 | . 1 . . 3 3 3 2 3 1 . 1 10 . 1 1 1 1 Highest Loss Streak 17 | . 1 . . 3 7 2 2 9 1 . 1 17 . 1 1 2 5 To Critical Strikes 3 | . . . . . 2 . . 1 . . . . . . . . . Average Backups 16 | 1 5 12 13 13 12 23 22 21 18 19 22 23 4 6 11 11 12 Power 1 | . 1 1 2 2 . 1 2 2 3 3 3 3 . . . . . Propulsion 4 | . 1 3 4 3 2 8 8 5 4 4 5 5 . 1 3 3 2 Utility 2 | . 1 2 2 1 1 3 1 3 2 3 4 4 . . . . . Weapon 8 | . 1 4 5 6 7 10 10 10 9 9 9 10 3 5 8 8 10 Tool/Special . | . . . . . . . . . . . . . . . . . . Unused Backups 31 | . . 1 . . 2 2 . . . . . 10 2 . . . 14 Power 2 | . . . . . 1 1 . . . . . . . . . . . Propulsion 4 | . . . . . . 1 . . . . . 1 . . . . 2 Utility 3 | . . . . . . . . . . . . 2 1 . . . . Weapon 22 | . . 1 . . 1 . . . . . . 7 1 . . . 12 Tool/Special . | . . . . . . . . . . . . . . . . . . Average Slot Usage (%) 87 | . 84 85 85 84 91 98 98 80 89 100 97 90 50 68 59 81 87 Engine 3 | . 14 14 14 14 7 . . . . . . . 6 . . 4 5 Core 3 | . . . . . 1 7 6 5 6 6 6 7 . . . . . Reactor 1 | . . . . . . . . . . . . . 2 10 5 5 5 Treads 22 | . 27 28 28 27 24 30 25 24 26 26 26 20 6 11 11 10 11 Device 8 | . . . . . 11 4 8 6 9 13 13 14 . 2 11 15 16 Storage 10 | . 14 14 14 14 15 15 13 13 13 13 8 4 . 3 5 5 5 Processor 4 | . . . . . . . 5 6 12 13 13 9 . 1 . 4 5 Hackware 1 | . . . . . . . . . . . . . . . 1 8 10 Protection 4 | . . . . 1 6 8 10 4 . . 1 6 11 13 . . . Energy Gun 4 | . 28 28 28 25 3 . . . . . . . . . . . . Ballistic Gun 17 | . . . . . 19 29 26 17 17 19 13 14 19 22 22 22 22 Ballistic Cannon 2 | . . . . . . . . . 2 6 12 6 . . . . . Peak Build Rating 105 | 6 9 10 10 12 30 39 52 51 58 61 64 84 89 105 86 98 99 Average Rating 50 | 4 6 9 10 9 22 34 50 45 52 59 62 69 42 94 77 92 98 On Entrance 40 | . 6 9 10 10 10 26 36 51 44 58 61 64 12 89 76 80 85 Avg Prop Armor Cover (%) 3 | . . . . 10 . . . . . . . . 1 4 . . . Naked Turns 29 | . . . . . . . . . . . . . 29 . . . . Heaviest Build 130 | 13 51 51 51 51 62 111 113 113 113 113 121 130 99 119 58 64 64 Greatest Support 140 | 40 40 40 40 40 62 88 90 104 104 104 104 114 140 140 140 140 140 Greatest Overweight (x) 3 | . 1 1 1 2 2 1 1 2 1 1 1 1 3 1 . . . Average Overweight (x) . | . . 1 1 1 . . 1 . . 1 1 . . . . . . Largest Inventory Capacity 25 | 8 20 20 20 20 20 25 25 25 25 25 25 25 5 15 15 15 15 Average Capacity 20 | 7 19 20 20 20 20 23 25 25 25 25 25 24 5 12 15 15 15 Most Carried 25 | 3 10 14 13 15 20 25 25 22 22 22 24 25 5 14 15 15 15 Average Carried 16 | 1 5 12 13 13 12 23 22 21 18 19 22 23 4 8 14 14 14 Final Capacity 25 | 8 20 20 20 20 20 25 25 25 25 25 25 5 5 15 15 15 15 Final Carried 25 | 1 10 13 13 10 19 25 22 21 18 22 24 5 5 14 15 14 15 Class Distribution -------------------- 28% | Gunner 28% | Scavenger-Tank 23% | Mutant 9% | Derelict-Tank 5% | Tank 3% | Scavenger-Gunner Dominant Class ---------------- Mutant | -10/Materials Mutant | -10/Mines Mutant | -10/Exiles Mutant | -9/Mines Scavenger-Tank | -8/Materials Scavenger-Tank | -7/Factory Tank | -6/Factory Mutant | -6/Lower Caves Gunner | -6/Lower Caves Gunner | -6/Zion Gunner | -5/Proximity Caves Gunner | -5/Factory Derelict-Tank | -5/Waste Scavenger-Tank | -5/Factory Scavenger-Tank | -5/Upper Caves Derelict-Tank | -5/Upper Caves Derelict-Tank | -5/Warlord Resources | -11 -10 -10 -10 -9 -8 -7 -6 -6 -6 -6 -5 -5 -5 -5 -5 -5 -5 ----------- Run | Yrd Mat Min Exi Min Mat Fac Fac Low Low Zio Pro Fac Was Fac Upp Upp War Matter Collected 6496 | 199 159 . . 62 1209 920 856 259 200 20 274 834 386 767 225 106 20 Remotely 369 | . . . . . . . . . . . . 369 . . . . . Salvage Created 8627 | . 387 . . 304 2005 1300 1087 115 249 . 349 1039 . 1309 298 90 95 Parts 452 | . 28 . . 11 107 57 51 11 11 . 18 68 . 71 15 3 1 Haulers Intercepted 7 | . 2 . . . 2 3 . . . . . . . . . . . Recyclers Shooed 10 | . 1 . . . 5 1 . . . . . 3 . . . . . Parts Field Recycled . | . . . . . . . . . . . . . . . . . . Retrieved Matter . | . . . . . . . . . . . . . . . . . . Parts Self-Destructed 63 | . . . . . . . . 9 10 5 18 . . . 18 3 . Prevented 1 | . . . . . . . . . 1 . . . . . . . . Parts Restored . | . . . . . . . . . . . . . . . . . . Kills | -11 -10 -10 -10 -9 -8 -7 -6 -6 -6 -6 -5 -5 -5 -5 -5 -5 -5 ------- Run | Yrd Mat Min Exi Min Mat Fac Fac Low Low Zio Pro Fac Was Fac Upp Upp War Combat Hostiles Destroyed 154 | . 9 . . 10 29 15 21 2 6 . 9 16 . 22 10 1 4 Melee 3 | . . . . 3 . . . . . . . . . . . . . Guns 130 | . 8 . . 7 28 15 21 2 3 . 3 10 . 22 10 1 . Cannons 13 | . . . . . 1 . . . 1 . 6 4 . . . . 1 AOE 8 | . 1 . . . . . . . 2 . . 2 . . . . 3 Classes Destroyed 17 | . 5 . . 2 7 1 . . . . . 1 . . . . 1 Worker 6 | . . . . . 2 1 . . . . . . . 3 . . . Builder 6 | . 1 . . . 1 . . . . . . 3 . 1 . . . Hauler 7 | . 2 . . . 2 3 . . . . . . . . . . . Recycler 14 | . 1 . . . 6 5 . . . . . 2 . . . . . Operator 1 | . . . . . . . . . . . . 1 . . . . . Watcher 6 | . 2 . . . 3 . 1 . . . . . . . . . . Swarmer 43 | . 9 . . 1 7 . 5 . . . 4 5 . 3 9 . . Grunt 38 | . . . . 5 8 7 6 . 4 . . 2 . 5 . . 1 Brawler 4 | . . . . . 2 . . . . . . . . 1 . . 1 Duelist 2 | . . . . . 1 . . . . . . . . . . . 1 Sentry 18 | . . . . . 6 3 1 . . . 1 2 . 3 1 1 . Specialist 5 | . . . . . 2 . . . . . . . . 3 . . . Hunter 20 | . . . . . 2 3 4 2 1 . 4 4 . . . . . Programmer 15 | . . . . . . 2 5 . 1 . . 2 . 5 . . . Heavy 3 | . . . . . 1 . . . . . . 1 . 1 . . . Behemoth 1 | . . . . . . . . . . . . . . . . . 1 Assembled 4 | . . . . 4 . . . . . . . . . . . . . Thug 1 | . . . . . . . . . . . . . . 1 . . . Best Kill Streak 7 | . 6 . . 3 7 5 4 2 4 . 4 7 . 6 5 1 4 Combat Bots Only 6 | . 4 . . 3 5 3 4 2 4 . 4 5 . 6 5 1 4 Max Kills in Single Turn 4 | . 1 . . 1 1 1 1 1 2 . 1 4 . 2 2 1 1 Gunslinging 1 | . . . . . . . . . 1 . . . . 1 1 . . Exploded 2 | . 1 . . . . . . . 1 . . 2 . . . . 1 Melee 1 | . . . . 1 . . . . . . . . . . . . . Uniques/NPCs Destroyed . | . . . . . . . . . . . . . . . . . . Combat | -11 -10 -10 -10 -9 -8 -7 -6 -6 -6 -6 -5 -5 -5 -5 -5 -5 -5 -------- Run | Yrd Mat Min Exi Min Mat Fac Fac Low Low Zio Pro Fac Was Fac Upp Upp War Hostile Shots Fired 1232 | . 59 . . 57 184 168 153 78 33 . 52 201 . 165 40 6 36 Missed 334 | . 15 . . 14 49 61 40 11 8 . 15 52 . 39 24 . 6 Hits 898 | . 44 . . 43 135 107 113 67 25 . 37 149 . 126 16 6 30 Melee 19 | . . . . 1 5 . . . . . . . . 6 . . 7 Projectile 879 | . 44 . . 42 130 107 113 67 25 . 37 149 . 120 16 6 23 AOE 1 | . . . . . . 1 . . . . . . . . . . . Critical Strikes 42 | . . . . . 13 2 2 2 1 . 1 11 . 8 . . 2 Actively Blocked 1 | . . . . . . . . . . . . 1 . . . . . Part Disruptions 3 | . . . . . . . . . . . . . . 3 . . . Damage Taken 15441 | . 374 . . 536 2312 1257 1562 1149 470 . 581 3777 82 2095 254 142 850 Core 1819 | . 73 . . 44 197 173 134 69 53 . 73 799 55 23 16 23 87 Absorbed by Shields . | . . . . . . . . . . . . . . . . . . Redirected to Shielding 116 | . . . . . . . . . . . . 16 17 83 . . . Ignored by Resistances 666 | . . . . . . . . . . . . . . 666 . . . Regen/Repaired (Parts) 451 | . . . . . . . . . . 161 . . 5 26 . . 259 Core Remaining (%) 70 | 100 . . . 53 64 75 . . . . 61 . . . . . . Volleys Fired 418 | . 20 . . 20 108 52 44 19 9 . 17 55 . 52 12 3 7 Largest 4 | . 2 . . 2 3 4 4 4 4 . 4 4 . 4 4 4 4 Hottest 150 | . 95 . . 90 150 94 106 109 119 . 136 136 . 142 142 142 142 Shots Fired 1349 | . 40 . 1 40 306 206 174 56 19 . 66 188 1 186 44 11 11 Gun 1243 | . 40 . 1 40 280 206 174 56 14 . 37 147 1 186 44 11 6 Cannon 97 | . . . . . 26 . . . 2 . 29 40 . . . . . Launcher 4 | . . . . . . . . . 3 . . 1 . . . . . Special 5 | . . . . . . . . . . . . . . . . . 5 Kinetic 1184 | . . . . . 231 206 174 56 16 . 66 187 1 186 44 11 6 Thermal 89 | . 14 . . . 75 . . . . . . . . . . . . Explosive 9 | . . . . . . . . . 3 . . 1 . . . . 5 Electromagnetic 67 | . 26 . 1 40 . . . . . . . . . . . . . Robot Hit Streak 24 | . 8 . . 13 16 12 24 11 5 . 21 21 . 12 7 7 3 Robot Miss Streak 4 | . 3 . . 4 4 4 2 3 3 . 3 3 1 2 4 2 3 Penetration Max 2 | . . . . . . . . . . . . 1 . 2 1 . . Secondary Targets 30 | . . . . . 7 3 3 1 1 . . 1 . 9 5 . . Max Gunslinging Chain 2 | . . . . . 1 1 1 1 1 . . 1 . 2 1 . . Shots Hit Robots 887 | . 25 . . 33 207 134 124 38 10 . 38 122 . 126 18 7 5 Core Hits 399 | . 18 . . 18 78 49 56 8 16 . 20 60 . 50 12 3 11 Critical Kills 10 | . . . . 1 . . 1 . 1 . 1 2 . 3 1 . . Critical Parts Destroyed 18 | . . . . 1 . 3 1 . 1 . . 7 . 3 1 1 . Critical Strikes 34 | . . . . 2 1 3 2 . 2 . 2 11 . 6 2 1 2 Burn 1 | . . . . . 1 . . . . . . . . . . . . Destroy 27 | . . . . . . 3 2 . 2 . 1 10 . 6 2 1 . Blast 2 | . . . . . . . . . . . 1 1 . . . . . Smash 2 | . . . . 2 . . . . . . . . . . . . . Sever 2 | . . . . . . . . . . . . . . . . . 2 Melee Attacks 7 | . . . . 6 . . . . . 1 . . . . . . . Impact 7 | . . . . 6 . . . . . 1 . . . . . . . Slashing . | . . . . . . . . . . . . . . . . . . Piercing . | . . . . . . . . . . . . . . . . . . Sneak Attacks . | . . . . . . . . . . . . . . . . . . Combat Hostiles . | . . . . . . . . . . . . . . . . . . Follow-up Attacks . | . . . . . . . . . . . . . . . . . . Damage Inflicted 18417 | . 399 8 . 703 3338 2133 2186 586 445 . 691 2377 20 3597 490 170 1274 Guns 14900 | . 361 . . 396 3026 2108 2164 586 130 . 320 1518 20 3530 490 170 81 Cannons 1275 | . . . . . 302 . . . 38 . 371 564 . . . . . Explosions 1622 | . 30 . . 42 . . . . 277 . . 230 . . . . 1043 Melee 263 | . . . . 263 . . . . . . . . . . . . . Ramming 207 | . 8 8 . 2 10 25 22 . . . . 65 . 67 . . . Kinetic 14692 | . . . . . 2602 2108 2164 586 168 . 691 2082 20 3530 490 170 81 Thermal 881 | . 113 . . 42 726 . . . . . . . . . . . . Explosive 1550 | . . . . . . . . . 277 . . 230 . . . . 1043 Electromagnetic 674 | . 278 . . 396 . . . . . . . . . . . . . Impact 263 | . . . . 263 . . . . . . . . . . . . . Slashing 150 | . . . . . . . . . . . . . . . . . 150 Piercing . | . . . . . . . . . . . . . . . . . . Highest Corruption 10 | . 1 1 1 7 4 . 1 1 1 1 . 1 1 4 4 4 10 Average Corruption 1 | . 1 1 1 1 4 . 1 1 1 1 . 1 1 1 4 3 9 Corruption Purged 4 | . . . . . . . . . . . . . . . . 4 . Corruption Blocked . | . . . . . . . . . . . . . . . . . . Effects 138 | . 5 5 1 16 37 . 14 6 12 1 . 1 5 13 18 4 . Message Errors 40 | . . 4 . 2 14 . 5 1 3 1 . . 1 4 4 1 . Matter Fused 31 | . 1 . . 4 6 . 4 1 5 . . . 2 2 5 1 . Heat Flow Errors 17 | . 1 . . 4 1 . 2 1 2 . . . 1 . 5 . . Energy Discharges 17 | . 3 . . 3 5 . 1 2 . . . . . 1 1 1 . Parts Rejected 2 | . . . . . 1 . . . . . . 1 . . . . . Parts Fused 2 | . . . . . 2 . . . . . . . . . . . . Data Loss (minor) 8 | . . 1 . 2 2 . 2 . . . . . . 1 . . . Data Loss (major) 6 | . . . . . . . . 1 1 . . . . 2 2 . . Misfires 10 | . . . 1 1 2 . . . 1 . . . 1 2 1 1 . Alerts 1 | . . . . . 1 . . . . . . . . . . . . Weapon Failures 4 | . . . . . 3 . . . . . . . . 1 . . . Overload Shots . | . . . . . . . . . . . . . . . . . . Overflow Damage 178 | . . . . 102 17 . . . . . . 42 . 17 . . . Projectiles 17 | . . . . . 17 . . . . . . . . . . . . Explosions 42 | . . . . . . . . . . . . 42 . . . . . Melee 119 | . . . . 102 . . . . . . . . . 17 . . . Knockbacks 7 | . . . . . . . . . . . 1 6 . . . . . Impact 1 | . . . . . . . . . . . . 1 . . . . . Kinetic 6 | . . . . . . . . . . . 1 5 . . . . . Secondary . | . . . . . . . . . . . . . . . . . . Self-Inflicted Damage 93 | . . . . 28 . . . . 23 . . 42 . . . . . Shots 3 | . . . . 1 . . . . 1 . . 1 . . . . . Rammed 22 | . 2 1 . 1 4 2 1 . . . . 8 . 3 . . . Targets Rammed 24 | . 3 1 . 1 4 3 1 . . . . 8 . 3 . . . Kicked . | . . . . . . . . . . . . . . . . . . Crushed 2 | . 1 . . . . 1 . . . . . . . . . . . Highest Temperature 556 | . 127 . 6 366 401 251 266 211 250 . 61 556 85 450 234 . . Average Temperature 100 | . 40 . 4 110 145 65 70 108 67 . 30 186 8 101 105 . . Received Heat Transfer 2075 | . . . . 197 666 273 228 . 84 . . 171 . 366 . 27 63 Effects 28 | . . . . 1 4 . 2 1 . . . 4 . 16 . . . Shutdowns 6 | . . . . . 1 . . . . . . . . 5 . . . Energy Bleed 4 | . . . . . . . . 1 . . . 1 . 2 . . . Interference 11 | . . . . 1 3 . 2 . . . . 1 . 4 . . . Matter Decay 1 | . . . . . . . . . . . . 1 . . . . . Short Circuit 1 | . . . . . . . . . . . . . . 1 . . . Damage (minor) 5 | . . . . . . . . . . . . 1 . 4 . . . Siege Activations . | . . . . . . . . . . . . . . . . . . Martial Activations . | . . . . . . . . . . . . . . . . . . Shielding Activations . | . . . . . . . . . . . . . . . . . . Robots Disrupted . | . . . . . . . . . . . . . . . . . . Combat Hostiles . | . . . . . . . . . . . . . . . . . . Robots Corrupted 1 | . . . . . . . . . . . . . . 1 . . . Combat Hostiles . | . . . . . . . . . . . . . . . . . . Parts Fried 4 | . 1 . . . . . . . . . . . . 3 . . . Impact Corruptions 5 | . . . . 3 . . . . . . . . . 2 . . . Robots Melted . | . . . . . . . . . . . . . . . . . . Combat Hostiles . | . . . . . . . . . . . . . . . . . . Parts Melted 2 | . . . . . 1 . . . . . . . . . . 1 . Heat Transferred 2030 | . 285 . . 50 1695 . . . . . . . . . . . . Parts Sabotaged . | . . . . . . . . . . . . . . . . . . Parts Stolen . | . . . . . . . . . . . . . . . . . . Parts Stripped . | . . . . . . . . . . . . . . . . . . Power Chain Reactions 2 | . 1 . . 1 . . . . . . . . . . . . . Alert | -11 -10 -10 -10 -9 -8 -7 -6 -6 -6 -6 -5 -5 -5 -5 -5 -5 -5 ------- Run | Yrd Mat Min Exi Min Mat Fac Fac Low Low Zio Pro Fac Was Fac Upp Upp War Maximum Alert Level 4 | . . . . . 1 . . . . . . . . 4 . . . Low Security (%) 87 | 100 100 100 . 100 73 100 100 . . . . 100 100 23 . . . Level 1 4 | . . . . . 26 . . . . . . . . 11 . . . Level 2 4 | . . . . . . . . . . . . . . 40 . . . Level 3 2 | . . . . . . . . . . . . . . 22 . . . Level 4 . | . . . . . . . . . . . . . . 1 . . . Level 5 . | . . . . . . . . . . . . . . . . . . High Security . | . . . . . . . . . . . . . . . . . . Max Security . | . . . . . . . . . . . . . . . . . . Peak Influence 1128 | . 139 30 . 65 314 133 198 . . . . 84 48 1128 . . . Initial 133 | . . 30 . . . 133 35 . . . . 7 5 . . . . Average 99 | . 33 2 . 7 113 43 53 . . . . 19 6 528 . . . Influence Increases 5612 | . 290 . . 147 867 464 596 50 150 . 210 471 76 1936 210 20 125 Destroy 0b10 Robot/C 3400 | . 180 . . 120 580 300 420 40 120 . 180 320 . 840 200 20 80 Destroy 0b10 Robot/NC 235 | . 30 . . . 70 45 5 . . . . 30 . 55 . . . Destroy Leader 742 | . 38 . . 20 160 76 102 10 30 . 30 70 . 196 10 . . Allied During Kill 574 | . . . . . . . . . . . . . . 574 . . . Successful Hack 63 | . 5 . . . 9 26 17 . . . . 6 . . . . . Disable Machine 75 | . . . . . 45 . . . . . . 15 . 15 . . . Destroy Structure 238 | . 7 . . 7 3 2 7 . . . . 30 76 106 . . . Lose Combat Pursuer 285 | . 30 . . . . 15 45 . . . . . . 150 . . 45 Influence Decreases 5541 | . 211 79 . 147 574 683 476 244 150 . 198 467 92 812 807 423 178 Entered New Map 979 | . . 49 . . . 160 39 73 . . . 5 11 . 417 101 124 Time Decay 3576 | . 201 30 . 117 439 453 387 140 150 . 178 212 81 502 380 302 4 Lost Part 726 | . 10 . . 30 135 70 50 31 . . 20 250 . 50 10 20 50 Lost Ally 260 | . . . . . . . . . . . . . . 260 . . . Squads Dispatched 33 | . . 1 . . 6 5 5 . . . . 5 . 11 . . . Investigation 4 | . . 1 . . . 1 1 . . . . . . 1 . . . Extermination 10 | . . . . . . 2 3 . . . . 1 . 4 . . . Reinforcement 13 | . . . . . 3 2 1 . . . . 4 . 3 . . . Assault 1 | . . . . . . . . . . . . . . 1 . . . Garrison 5 | . . . . . 3 . . . . . . . . 2 . . . Intercept . | . . . . . . . . . . . . . . . . . . Searches Triggered . | . . . . . . . . . . . . . . . . . . Construction Impeded 4 | . . . . . . 1 1 . . . . 2 . . . . . Haulers Reinforced . | . . . . . . . . . . . . . . . . . . Active Scanning Responses . | . . . . . . . . . . . . . . . . . . Cargo Convoy Interrupts 2 | . . . . . . 1 . . . . . . . 1 . . . Stealth | -11 -10 -10 -10 -9 -8 -7 -6 -6 -6 -6 -5 -5 -5 -5 -5 -5 -5 --------- Run | Yrd Mat Min Exi Min Mat Fac Fac Low Low Zio Pro Fac Was Fac Upp Upp War Distress Signals 12 | . 1 . . . 4 . . . . . . 3 . 2 . . 2 Communications Jammed 19 | . . . . . . . . . . . . 19 . . . . . Distress Signals 19 | . . . . . . . . . . . . 19 . . . . . Times Spotted 261 | . 19 . . 19 39 23 24 2 6 . 9 30 5 57 11 1 16 Peak Tracking Total 12 | . 5 . . 7 5 3 3 2 4 . 2 12 3 10 5 1 10 Tactical Retreats 15 | . 2 . . 2 . 1 2 . . . . . . 6 . . 2 Traps | -11 -10 -10 -10 -9 -8 -7 -6 -6 -6 -6 -5 -5 -5 -5 -5 -5 -5 ------- Run | Yrd Mat Min Exi Min Mat Fac Fac Low Low Zio Pro Fac Was Fac Upp Upp War Traps Triggered 9 | . 4 . . . . 1 2 . . . . 2 . . . . . Indirectly . | . . . . . . . . . . . . . . . . . . Trap Hack Attempts . | . . . . . . . . . . . . . . . . . . Triggered . | . . . . . . . . . . . . . . . . . . Disarmed . | . . . . . . . . . . . . . . . . . . Reprogrammed . | . . . . . . . . . . . . . . . . . . Reused . | . . . . . . . . . . . . . . . . . . Traps Extracted . | . . . . . . . . . . . . . . . . . . Installed . | . . . . . . . . . . . . . . . . . . Triggered . | . . . . . . . . . . . . . . . . . . Machines | -11 -10 -10 -10 -9 -8 -7 -6 -6 -6 -6 -5 -5 -5 -5 -5 -5 -5 ---------- Run | Yrd Mat Min Exi Min Mat Fac Fac Low Low Zio Pro Fac Was Fac Upp Upp War Machines Disabled 6 | . . . . . 3 . . . . . . 1 . 1 1 . . Max in Single Turn 1 | . . . . . 1 . . . . . . 1 . 1 1 . . Garrison Access 2 | . . . . . . . 1 . . . . . . 1 . . . Machines Repaired . | . . . . . . . . . . . . . . . . . . Machines Dismantled . | . . . . . . . . . . . . . . . . . . Machines Sabotaged . | . . . . . . . . . . . . . . . . . . Overloaded Fab Kills . | . . . . . . . . . . . . . . . . . . Hacking | -11 -10 -10 -10 -9 -8 -7 -6 -6 -6 -6 -5 -5 -5 -5 -5 -5 -5 --------- Run | Yrd Mat Min Exi Min Mat Fac Fac Low Low Zio Pro Fac Was Fac Upp Upp War Machines Accessed 42 | . 4 1 . . 5 6 10 . 1 . . 5 . 2 3 1 4 Terminals 21 | . 4 . . . 3 4 6 . . . . 3 . 1 . . . Fabricators 2 | . . . . . . 1 1 . . . . . . . . . . Repair Stations 1 | . . . . . 1 . . . . . . . . . . . . Recycling Units 1 | . . . . . . . . . . . . 1 . . . . . Scanalyzers 4 | . . . . . 1 1 2 . . . . . . . . . . Garrison Access 3 | . . . . . . . 1 . . . . 1 . 1 . . . Total Hacks 95 | . 11 1 . . 15 12 17 . 1 . . 13 . 4 9 1 11 Successful 58 | . 6 1 . . 9 4 8 . 1 . . 7 . 1 9 1 11 Failed 37 | . 5 . . . 6 8 9 . . . . 6 . 3 . . . Catastrophic 4 | . 1 . . . . 1 1 . . . . . . 1 . . . Database Lockouts . | . . . . . . . . . . . . . . . . . . Manual 29 | . 9 . . . 7 3 1 . . . . 7 . 2 . . . Terminals 46 | . 11 . . . 9 8 8 . . . . 8 . 2 . . . Fabricators 2 | . . . . . . 1 1 . . . . . . . . . . Repair Stations 2 | . . . . . 2 . . . . . . . . . . . . Recycling Units 3 | . . . . . . . . . . . . 3 . . . . . Scanalyzers 13 | . . . . . 4 3 6 . . . . . . . . . . Garrison Access 6 | . . . . . . . 2 . . . . 2 . 2 . . . Terminal Hacks 32 | . 2 1 . . 2 . 2 . 1 . . 3 . . 9 1 11 Record 8 | . . . . . . . . . . . . . . . 8 . . Prototype ID Bank 11 | . 1 . . . 1 . . . . . . . . . . . 9 Open Door 6 | . . 1 . . . . . . 1 . . . . . 1 1 2 Open DSF 1 | . . . . . . . 1 . . . . . . . . . . Branch Access Points 2 | . . . . . . . 1 . . . . 1 . . . . . Alert Level 4 | . 1 . . . 1 . . . . . . 2 . . . . . Fabricator Hacks . | . . . . . . . . . . . . . . . . . . Repair Station Hacks 2 | . . . . . 2 . . . . . . . . . . . . Scan Component 1 | . . . . . 1 . . . . . . . . . . . . Repair 1 | . . . . . 1 . . . . . . . . . . . . Recycling Unit Hacks 1 | . . . . . . . . . . . . 1 . . . . . Report Inventory 1 | . . . . . . . . . . . . 1 . . . . . Scanalyzer 10 | . . . . . 3 2 5 . . . . . . . . . . Insert Component 5 | . . . . . 2 1 2 . . . . . . . . . . Analyze 3 | . . . . . 1 1 1 . . . . . . . . . . Retrieve Study 2 | . . . . . . . 2 . . . . . . . . . . Garrison Access Hacks 2 | . . . . . . . 1 . . . . . . 1 . . . Seal Access 2 | . . . . . . . 1 . . . . . . 1 . . . Unauthorized Hacks 11 | . 4 . . . 2 2 . . . . . 3 . . . . . Terminals 10 | . 4 . . . 2 2 . . . . . 2 . . . . . Track 1 | . . . . . . . . . . . . 1 . . . . . Botnet 8 | . 3 . . . 2 2 . . . . . 1 . . . . . Operators 1 | . 1 . . . . . . . . . . . . . . . . Fabricators . | . . . . . . . . . . . . . . . . . . Repair Stations . | . . . . . . . . . . . . . . . . . . Recycling Units 1 | . . . . . . . . . . . . 1 . . . . . Reject 1 | . . . . . . . . . . . . 1 . . . . . Scanalyzers . | . . . . . . . . . . . . . . . . . . Garrison Access . | . . . . . . . . . . . . . . . . . . Data Cores Recovered 3 | . . . . . . . . . . . . 1 . 2 . . . Used . | . . . . . . . . . . . . . . . . . . Hacking Detections 28 | . 4 . . . 5 6 7 . . . . 5 . 1 . . . Full Trace Events 4 | . . . . . 1 1 1 . . . . . . 1 . . . Feedback Events . | . . . . . . . . . . . . . . . . . . Feedback Blocked . | . . . . . . . . . . . . . . . . . . Robot Schematics Acquired 3 | . . . . . . . . . . 3 . . . . . . . Robots Built . | . . . . . . . . . . . . . . . . . . Authchips . | . . . . . . . . . . . . . . . . . . Time . | . . . . . . . . . . . . . . . . . . Total Robot Build Rating . | . . . . . . . . . . . . . . . . . . Part Schematics Acquired 17 | . . . . . 1 . 1 . . 15 . . . . . . . Parts Built . | . . . . . . . . . . . . . . . . . . Authchips . | . . . . . . . . . . . . . . . . . . Time . | . . . . . . . . . . . . . . . . . . Total Part Build Rating . | . . . . . . . . . . . . . . . . . . Part Studies Acquired 2 | . . . . . . . 2 . . . . . . . . . . Parts Repaired 1 | . . . . . 1 . . . . . . . . . . . . Time 76 | . . . . . 76 . . . . . . . . . . . . Parts Recycled . | . . . . . . . . . . . . . . . . . . Recycled Matter . | . . . . . . . . . . . . . . . . . . Retrieved Matter . | . . . . . . . . . . . . . . . . . . Retrieved Components . | . . . . . . . . . . . . . . . . . . Parts Scanalyzed 4 | . . . . . 2 1 1 . . . . . . . . . . Part Schematics Acquired 2 | . . . . . 1 . 1 . . . . . . . . . . Parts Damaged 1 | . . . . . 1 . . . . . . . . . . . . Bothacking | -11 -10 -10 -10 -9 -8 -7 -6 -6 -6 -6 -5 -5 -5 -5 -5 -5 -5 ------------ Run | Yrd Mat Min Exi Min Mat Fac Fac Low Low Zio Pro Fac Was Fac Upp Upp War Used RIF Installer . | . . . . . . . . . . . . . . . . . . Robots Hacked . | . . . . . . . . . . . . . . . . . . Non-combat . | . . . . . . . . . . . . . . . . . . Combat . | . . . . . . . . . . . . . . . . . . Robot Hacks Applied . | . . . . . . . . . . . . . . . . . . Relay Couplers Released . | . . . . . . . . . . . . . . . . . . Fabnet Peak Effective % . | . . . . . . . . . . . . . . . . . . Robots Rewired . | . . . . . . . . . . . . . . . . . . Allies Hacked 1 | . . . . . . . . . . . . . . 1 . . . Hacks Repelled . | . . . . . . . . . . . . . . . . . . Allies | -11 -10 -10 -10 -9 -8 -7 -6 -6 -6 -6 -5 -5 -5 -5 -5 -5 -5 -------- Run | Yrd Mat Min Exi Min Mat Fac Fac Low Low Zio Pro Fac Was Fac Upp Upp War Total Allies 21 | . . . . . . . . . . . . . 19 . 2 . . Largest Group 19 | . . . . . . . . . . . . . 19 18 2 2 . Highest-Rated Group 684 | . . . . . . . . . . . . . 684 657 56 56 . Highest-Rated Ally 50 | . . . . . . . . . . . . . 50 50 31 31 . Total Orders . | . . . . . . . . . . . . . . . . . . Ally Attacks 357 | . . . . . . . . . . . . . 159 198 . . . Total Damage 9183 | . . . . . . . . . . . . . 4126 5057 . . . Kills 37 | . . . . . . . . . . . . . 7 30 . . . Allies Corrupted . | . . . . . . . . . . . . . . . . . . Allies Melted 2 | . . . . . . . . . . . . . . . . . 2 Intel | -11 -10 -10 -10 -9 -8 -7 -6 -6 -6 -6 -5 -5 -5 -5 -5 -5 -5 ------- Run | Yrd Mat Min Exi Min Mat Fac Fac Low Low Zio Pro Fac Was Fac Upp Upp War Active Infowar (turns) 8566 | . . . . . . . 2204 685 1052 2383 1424 818 . . . . . Jamming 8566 | . . . . . . . 2204 685 1052 2383 1424 818 . . . . . Robot Analysis Total . | . . . . . . . . . . . . . . . . . . Derelict Logs Recovered 13 | . . . . 2 . . . . 2 1 2 . . . 3 3 . Drone Launches . | . . . . . . . . . . . . . . . . . . Drone Recoveries . | . . . . . . . . . . . . . . . . . . Exploration | -11 -10 -10 -10 -9 -8 -7 -6 -6 -6 -6 -5 -5 -5 -5 -5 -5 -5 ------------- Run | Yrd Mat Min Exi Min Mat Fac Fac Low Low Zio Pro Fac Was Fac Upp Upp War Turns Passed 20239 | 70 1624 574 180 1050 1463 1727 2206 685 1052 2383 1424 1019 575 1354 897 663 1293 Spaces Moved 8902 | 44 643 237 76 387 500 674 836 308 485 1018 582 349 387 664 530 404 778 Core 173 | 11 . . . . . . . . . . . 20 142 . . . . Treads 8719 | 33 643 237 76 387 500 674 836 308 485 1018 582 329 235 664 530 404 778 Legs . | . . . . . . . . . . . . . . . . . . Wheels . | . . . . . . . . . . . . . . . . . . Hover 10 | . . . . . . . . . . . . . 10 . . . . Flight . | . . . . . . . . . . . . . . . . . . Fastest Speed 50 | 50 160 240 240 240 155 160 230 162 162 232 232 50 50 160 160 160 160 Average Speed 203 | 132 232 240 240 248 184 212 237 201 206 232 232 223 136 164 160 160 160 Slowest Speed 320 | 160 240 240 240 320 305 240 240 285 232 232 232 240 260 240 160 160 160 Overloaded Moves . | . . . . . . . . . . . . . . . . . . Propulsion Burnouts . | . . . . . . . . . . . . . . . . . . Robots Hopped . | . . . . . . . . . . . . . . . . . . Potential Cave-ins . | . . . . . . . . . . . . . . . . . . Cave-ins Triggered . | . . . . . . . . . . . . . . . . . . Exploration Rate (%) 49 | 4 93 36 17 57 39 16 27 54 65 75 75 11 88 19 68 59 84 Regions Visited 17 Branch Regions 10 Pre-discovered Areas 4 | . . 1 . . . . . . . 1 . . . . 1 1 . Known Exits Taken 3 | . . . . . 1 . 1 . . . . . . 1 . . . Unknown Exits Taken 12 | 1 1 1 1 1 . 1 . 1 1 1 1 . . . 1 1 . Scrap Searched 20 | . . . . 2 . . . 2 2 4 1 . . . 5 4 . Spaces Dug . | . . . . . . . . . . . . . . . . . . Terrain Destroyed 171 | . 6 . . 7 . . . . 11 . 8 12 . 27 23 5 72 Melee . | . . . . . . . . . . . . . . . . . . Projectile 76 | . . . . . . . . . . . 8 9 . 27 23 5 4 AOE 93 | . 6 . . 7 . . . . 11 . . 1 . . . . 68 Terrain Rammed . | . . . . . . . . . . . . . . . . . . Walls Destroyed . | . . . . . . . . . . . . . . . . . . Machines Disabled . | . . . . . . . . . . . . . . . . . . Actions | -11 -10 -10 -10 -9 -8 -7 -6 -6 -6 -6 -5 -5 -5 -5 -5 -5 -5 --------- Run | Yrd Mat Min Exi Min Mat Fac Fac Low Low Zio Pro Fac Was Fac Upp Upp War Total 10241 | 56 726 242 75 429 857 859 973 339 522 1038 614 491 434 803 551 412 820 Wait 523 | . 32 . . 9 154 86 68 . 19 14 8 23 21 65 1 1 22 Move 8886 | 43 642 236 75 386 499 673 835 307 484 1017 581 349 386 663 529 403 778 Hop . | . . . . . . . . . . . . . . . . . . Pick Up 156 | 7 16 4 . 2 42 17 10 5 3 4 4 18 3 11 3 . 7 Fast Attach 23 | . . . . . . 3 1 . . . . 1 10 1 3 4 . Attach 110 | 6 6 . . 5 27 7 12 5 6 . 2 25 1 5 1 1 1 Detach 4 | . . . . . 3 . . . . . . . . 1 . . . Swap 35 | . 4 . . . 9 8 1 2 1 2 1 4 2 . . . 1 Drop 52 | . 3 1 . . 11 10 1 1 . . . 6 11 2 2 . 4 Fire 418 | . 20 . . 20 108 52 44 19 9 . 17 55 . 52 12 3 7 Melee 7 | . . . . 6 . . . . . 1 . . . . . . . Ram 7 | . . . . . . . . . . . . 7 . . . . . Kick . | . . . . . . . . . . . . . . . . . . Crush 17 | . 3 1 . 1 4 3 1 . . . . 1 . 3 . . . Escape Stasis 2 | . . . . . . . . . . . . 2 . . . . . Rewire 1 | . . . . . . . . . . . 1 . . . . . . Trap . | . . . . . . . . . . . . . . . . . . Miscellaneous . | . . . . . . . . . . . . . . . . . . Route ------- -11/Scrapyard -10/Materials (discovered 5 exits: [*Mat x3] / *Min / [*Sub]) -10/Mines -10/Exiles -9/Mines (discovered 2 exits: *Mat x2) -8/Materials (discovered 3 exits: *Fac x3) -7/Factory -6/Factory (discovered 3 exits: *Fac / *Low x2) -6/Lower Caves -6/Lower Caves (discovered 2 exits: *Fac / [*Zio]) -6/Zion -5/Proximity Caves -5/Factory (discovered 4 exits: *Fac x2 / Upp x2) -5/Waste -5/Factory -5/Upper Caves -5/Upper Caves -5/Warlord History --------- Turn | Location | Event 7 | -11/Scrapyard | Discovered new exit (range 16) 71 | -11/Scrapyard | Entered Materials 213 | -10/Materials | Discovered new exit (range 11) 302 | -10/Materials | Build established: Mutant 583 | -10/Materials | Discovered new exit (range 11) 812 | -10/Materials | Discovered new exit (range 15) 1390 | -10/Materials | Discovered new exit (range 12) 1630 | -10/Materials | Discovered new exit (range 7) 1695 | -10/Materials | Entered Mines 1701 | -10/Mines | Met a Derelict shopkeep closing up shop 1826 | -10/Mines | A weapon hastily lodged in a ceiling crevice suddenly fell to the ground 1892 | -10/Mines | Deemed a non-threat by the Exiles lab entrance 1894 | -10/Mines | Discovered new exit (range 5) 2092 | -10/Mines | Learned location of Storage (-7) 2269 | -10/Mines | Entered Exiles 2327 | -10/Exiles | Met 8R-AWN 2368 | -10/Exiles | Met EX-HEX 2423 | -10/Exiles | Discovered new exit (range 14) 2449 | -10/Exiles | Entered Mines 2721 | -9/Mines | Discovered new exit (range 7) 2728 | -9/Mines | Received a Rocket Launcher from a helpful Derelict 3364 | -9/Mines | Assembled infested the area 3369 | -9/Mines | Assisted by a Guerilla fighting off Assembled 3448 | -9/Mines | Lost 3 parts (1n2w) 3472 | -9/Mines | Learned location of 2 exits from Materials 3475 | -9/Mines | Discovered new exit (range 9) 3499 | -9/Mines | Entered Materials 3499 | -8/Materials | Evolved 4 slots: Propulsion x1, Utility x2, Weapon x1 3500 | -8/Materials | Identified exit to Factory 3701 | -8/Materials | Lost 3 parts (1p2n) 4387 | -8/Materials | Build established: Scavenger-Tank 4514 | -8/Materials | Garrison activated, responded to threat 4736 | -8/Materials | Repaired Faulty Enh. Autogun 4846 | -8/Materials | Lost 7 parts (1p3n3w) 4962 | -8/Materials | Entered Factory 4962 | -7/Factory | Evolved 2 slots: Propulsion x1, Weapon x1 5827 | -7/Factory | Discovered new exit (range 8) 6611 | -7/Factory | Cargo convoy interrupted 6689 | -7/Factory | Entered another Factory area 6689 | -6/Factory | Evolved 2 slots: Utility x2 6896 | -6/Factory | Build established: Gunner 7125 | -6/Factory | Discovered new exit (range 9) 7217 | -6/Factory | Identified exit to DSF 7645 | -6/Factory | Build established: Tank 8732 | -6/Factory | Build established: Scavenger-Tank 8793 | -6/Factory | Identified exit to Lower Caves 8895 | -6/Factory | Entered Lower Caves 9198 | -6/Lower Caves | Lost 9 parts (1p3n2u3w) 9380 | -6/Lower Caves | Discovered new exit (range 14) 9435 | -6/Lower Caves | Build established: Mutant 9580 | -6/Lower Caves | Entered another Lower Caves area 9616 | -6/Lower Caves | Discovered new exit (range 9) 9722 | -6/Lower Caves | Encountered a Warlord checkpoint 10093 | -6/Lower Caves | Learned Factory garrison access intel 10418 | -6/Lower Caves | Build established: Gunner 10528 | -6/Lower Caves | Learned Factory terminal intel 10609 | -6/Lower Caves | Discovered new exit (range 8) 10632 | -6/Lower Caves | Entered Zion 10670 | -6/Zion | Learned Factory stockpile data 10753 | -6/Zion | Given the Hacking Drone Bay 10753 | -6/Zion | Found Prototype Device 10826 | -6/Zion | System corruption cleaned by Quarantine Array 11882 | -6/Zion | Discovered new exit (range 13) 12005 | -6/Zion | Found Prototype Processor 13015 | -6/Zion | Entered Proximity Caves 13115 | -5/Proximity Caves | Learned location of 1 exit from Factory 13195 | -5/Proximity Caves | Learned location of 1 exit from Factory 13834 | -5/Proximity Caves | Attracted the attention of an 0b10 checkpoint 14308 | -5/Proximity Caves | Discovered new exit (range 16) 14439 | -5/Proximity Caves | Entered Factory 14439 | -5/Factory | Evolved 2 slots: Power x1, Utility x1 14440 | -5/Factory | Identified exit to Factory 14442 | -5/Factory | Loaded intel: 26 terminal locations 14443 | -5/Factory | Loaded intel: 4 garrison access locations 14889 | -5/Factory | Identified exit to Upper Caves 15034 | -5/Factory | Lost 5 parts (2n1u2w) 15070 | -5/Factory | Lost 3 parts (1u2w) 15169 | -5/Factory | Lost 4 parts (1p1n1u1w) 15310 | -5/Factory | Lost 4 parts (1p2n1u) 15411 | -5/Factory | Identified Exp. Core Analyzer 15446 | -5/Factory | Core integrity fell below 50% 15458 | -5/Factory | Sucked down chute 15458 | -5/Factory | Entered Waste 15463 | -5/Waste | Spotted C-40 Crusher 15464 | -5/Waste | Spotted C-40 Crusher 15468 | -5/Waste | Spotted C-40 Crusher 15470 | -5/Waste | Lost 17 parts (2p4n6u5w) 15485 | -5/Waste | Warlord forces began an assault 15491 | -5/Waste | Allies destroyed C-40 Crusher 15502 | -5/Waste | Allies destroyed C-40 Crusher 15510 | -5/Waste | Core integrity fell below 20% 15510 | -5/Waste | Allies destroyed C-40 Crusher 15794 | -5/Waste | Spotted C-40 Crusher 15801 | -5/Waste | Allies destroyed C-40 Crusher 15886 | -5/Waste | Spotted C-40 Crusher 15894 | -5/Waste | Allies destroyed C-40 Crusher 15950 | -5/Waste | Spotted C-40 Crusher 15959 | -5/Waste | Allies destroyed C-40 Crusher 15971 | -5/Waste | Discovered new exit (range 15) 15976 | -5/Waste | Found Damper Plating 16033 | -5/Waste | Entered Factory 16033 | -5/Factory | Accompanied by 18 allies 16120 | -5/Factory | Build established: Scavenger-Tank 16527 | -5/Factory | Cargo convoy interrupted 16575 | -5/Factory | Lost 7 allies 16585 | -5/Factory | Found Exp. Core Analyzer 16971 | -5/Factory | P-70 Sage assimilated allied 5R-NVF(g) 17040 | -5/Factory | Discovered exit to Upper Caves (range 15) 17054 | -5/Factory | Lost 6 allies 17233 | -5/Factory | First assault squad dispatched 17387 | -5/Factory | Entered Upper Caves 17401 | -5/Upper Caves | Attracted the attention of an 0b10 checkpoint 17537 | -5/Upper Caves | Found Alien Artifact 17537 | -5/Upper Caves | Identified Dimensional Node Initializer 17537 | -5/Upper Caves | Initialized slip node 17633 | -5/Upper Caves | Learned location of 1 exit from Factory 17920 | -5/Upper Caves | Learned Factory garrison access intel 17947 | -5/Upper Caves | Entered an active Warlord outpost 17952 | -5/Upper Caves | A Commander dispatched an escort 17973 | -5/Upper Caves | Learned location of 1 exit from Research 17973 | -5/Upper Caves | Learned Armory stockpile data 17973 | -5/Upper Caves | Learned Armory security intel 17973 | -5/Upper Caves | Learned Extension garrison access intel 18259 | -5/Upper Caves | Discovered new exit (range 14) 18284 | -5/Upper Caves | Entered another Upper Caves area 18284 | -5/Upper Caves | Accompanied by 2 allies 18285 | -5/Upper Caves | Commander's escort returned to base 18285 | -5/Upper Caves | Commander's escort returned to base 18671 | -5/Upper Caves | Learned Factory stockpile data 18722 | -5/Upper Caves | Discovered new exit (range 15) 18773 | -5/Upper Caves | Build established: Derelict-Tank 18861 | -5/Upper Caves | Attracted the attention of an 0b10 checkpoint 18947 | -5/Upper Caves | Entered Warlord 19415 | -5/Warlord | Found Prototype Special Weapon 19417 | -5/Warlord | Found Prototype Special Weapon 19421 | -5/Warlord | Found Prototype Special Weapon 19424 | -5/Warlord | Found Prototype Special Weapon 19589 | -5/Warlord | Visited the Vortex Lab 19602 | -5/Warlord | Warlord's base attacked by MAIN.C 19738 | -5/Warlord | Met Warlord 19952 | -5/Warlord | Warlord forces counterattacked 20104 | -5/Warlord | Lost 5 allies 20188 | -5/Warlord | Opened side exit 20201 | -5/Warlord | Spotted Striker 20225 | -5/Warlord | Spotted B-86 Titan 20228 | -5/Warlord | Identified RU-N14's Throwing Claymores v3 (x3) 20229 | -5/Warlord | Spotted Executioner 20235 | -5/Warlord | Destroyed B-86 Titan 20240 | -5/Warlord | System corruption reached 10% 20240 | -5/Warlord | Destroyed by Executioner with Helical Railgun Last Messages --------------- Slug penetrates Wall. Executioner Prototype Reactor severed. L-41 Fighter destroyed. The unstable cave ceiling collapses. B-86 Titan destroyed. The unstable cave ceiling collapses. RU-N14's Throwing Claymores v3 expended. B-60 Warrior Imp. Medium Armor Plating severed. B-60 Warrior destroyed. Slug penetrates B-60 Warrior. Slug penetrates Wall. Adv. Heat Sink destroyed. System Shield destroyed. Imp. System Restoration Module destroyed. System corrupted by crushing effect (+2). System corrupted by crushing effect (+3). System corrupted by crushing effect (+4). Hvy. Battle Rifle destroyed. System corrupted by crushing effect (+1). Mak. Power Source destroyed. Map ----- +----------------------------------------------------+ | #######""#####????????????????# ##?? #? | | # "" !"############??????# ### #?? | | " %""%!!""""""""""""#???????# # #??? | | "%!%""%=%%"""""""""""#?####?## #???? | | %* /^=*%!=!=*= ### ### ##??? | | %!/^!%![[%%*% + ## #??? | | /^!=*!%![%% + #### #??? | | %[[/^ !=%=*==! #### ##??# #??? | | *%!% !!"%%[%%""""""""""#??## #???# ##?? | | ]= " "" *!""""""""""""#???# #?### #?? | | # "" "############?? # "### # #?? | | #######""#####?????????????;;*=#?# #?? | | #?????#""#????????????????# %[;## #?? | | #?????#""#???????????????# # ##?? | | #??????""????????????####; # #??? | | #??????????????????### %; ### ##??? | | #??????????????????# ###% [ #???? | | #??????????????????## " % #???? | | #????????????????### "" ##??? | | ##???????????????? # ## #??? | | #????????????????? # #??? | | ##?????????????????? # #??? | | #??????????????????## E ?# #??? | | ##????????????????## # * ???# #??? | | #????????????????# gb%##?????# #??? | | ##????????????????# ib@##?????## ##??? | | ##????????????????# ## #?????? #???? | | #????????????????#####; % #?????? ##???? | | ##????????????????????# ##?????#####????? | | #?????????????????????# ##???????????????? | | #?????????????????????; #????????????????? | | ##???????????????????#; #????????????????? | | #???????????????????#; #????????????????? | | #???????????????????## #????????????????? | | #????????????????????# #????????????????? | | #???????###??????????# #????????????????? | | #########X############ #????????????????? | | #????????????????? | | #????????????????? | | ##########################????????????????? | | ??????????????????????????????????????????? | | ??????????????????????????????????????????? | | ??????????????????????????????????????????? | | ??????????????????????????????????????????? | | ??????????????????????????????????????????? | | | | | | | | | | | +----------------------------------------------------+ Best States ------------- Heat Dissipation 78 Energy Generation 37 Energy Capacity 550 Matter Stores 500 Matter Capacity 500 Sight Range 16 Terrain Scan Density 10 Jamming Range 14 Base Temperature (-) 150 Armor Coverage 1760 Resistance: EM 90 Core Shielding 20 Propulsion Shielding 66 Weapon Cycling 20 Evasion (%) 50 Targeting Accuracy 8 Core Analysis 8 Recoil Reduction 4 Kinecelleration 30 Salvage Targeting 4 Defensive Hacking 22 Item Schematics ----------------- Enh. Autogun | -8/Materials | Scanalyzed Arm. Treads | -6/Factory | Scanalyzed Magnetic Acceleration Cannon | -6/Zion | Archive Adv. Plasma Cannon | -6/Zion | Archive Lyr. Medium Armor Plating | -6/Zion | Archive Adv. Trap Extractor | -6/Zion | Archive Imp. Reaction Control System | -6/Zion | Archive Imp. Recalibrator | -6/Zion | Archive Imp. Target Analyzer | -6/Zion | Archive Imp. Hardlight Generator | -6/Zion | Archive Myomer Leg | -6/Zion | Archive Adv. Actuator Array | -6/Zion | Archive Imp. Medium Treads | -6/Zion | Archive Imp. Cryofiber Web | -6/Zion | Archive Field Propulsion Drive | -6/Zion | Archive Point Defense System | -6/Zion | Archive Imp. KE Penetrator | -6/Zion | Archive Robot Schematics ------------------ A-02 Transporter | -6/Zion | Archive A-15 Conveyor | -6/Zion | Archive R-06 Scavenger | -6/Zion | Archive Fabricated ------------ Nothing Repaired ---------- Enh. Autogun | 99% | -8/Materials | Broken Studied --------- Arm. Treads | -6/Factory | Hacked Imp. Medium Treads | -6/Factory | Hacked Alien Tech Used ----------------- Dimensional Node Initializer Achievements -------------- Construction Begets Destruction DIY Cooler That Tickles Challenges ------------ None Game ------ Seed MultinovaNeutrinoSource Manual? 0 Play Time 02:04:11 Cumulative 210.7 hours Start 2026.08.27 @ 01:15:26 End 2026.08.27 @ 15:30:37 Sessions 3 Manual Loads 0 Difficulty Rogue Special Mode None Game No. 256 Rogue 256 Adventurer 0 Explorer 0 Win Type - Total 2 Types 2/0/0/0/0/0/0/0/0/0 Lore% 28 Gallery% 53 Achievement% 33 Wizard Run 0 Options --------- Layout 1 ASCII 0 Keyboard 0 Movement Numpad Keybinds 0 Fullscreen 2 Font 24/Smallcaps Map View 50x35 Zoom Use 0% Tactical HUD 0 Map Filters NONE Filters NONE Steam 1 RUN: ab63d465-6794-4d1c-b7a6-d3ca255c8713